bitfinex-derivatives/quotes_ETHF0:USTF0_20250505
["timestamp","ask_amount","ask_price","bid_price","bid_amount"]
[1746409778148,1.11738,1789.8,1789.7,8.0989]
[1746409778351,1.11741,1789.8,1789.6,6.23099]
[1746409778648,1.11741,1789.8,1789.7,40.8]
[1746409781464,4.32521,1789.8,1789.7,40.8]
[1746409782656,12.24831,1789.8,1789.7,40.8]
[1746409788072,1.11741,1789.8,1789.7,40.8]
[1746409788363,2.79368,1789.7,1789.1,3.2078]
[1746409788559,1.11776,1789.2,1789.1,13.2453]
[1746409788866,4.3254,1789.5,1789.2,1.11775]
[1746409789061,3.2078,1789.5,1789.3,1.11767]
[1746409789470,3.2078,1789.5,1789.4,1.1812313]
[1746409789767,1.11757,1789.5,1789.4,1.1812313]
[1746409790766,1.11757,1789.5,1789.4,41.9812313]
[1746409791167,1.11776,1789.2,1789.1,13.2453]
[1746409791969,1.11776,1789.2,1789.1,21.1907]
[1746409792164,1.11774,1789.3,1789.1,68.10849]
[1746409792371,1.11774,1789.3,1789.2,7.9454]
[1746409793070,1.11774,1789.3,1789.2,48.7454]
[1746409794462,1.11766,1789.4,1789.2,48.7454]
[1746409794661,1.11766,1789.4,1789.3,7.3919]
[1746409795269,1.11761,1789.5,1789.3,48.1919]
[1746409795676,1.11761,1789.5,1789.4,7.3919]
[1746409795975,6.94155,1789.6,1789.4,7.3919]
[1746409796175,1.11755,1789.6,1789.5,4.8019]
[1746409796377,1.11755,1789.6,1789.5,45.6019]
[1746409796770,20.07616,1789.7,1789.5,45.6019]
[1746409796969,9.12161,1789.6,1789.5,45.6019]
[1746409797475,8.0041,1789.6,1789.5,45.6019]
[1746409798279,9.12161,1789.6,1789.5,45.6019]
[1746409798575,8.0041,1789.6,1789.5,45.6019]
[1746409800781,9.12161,1789.6,1789.5,45.6019]
[1746409801171,8.0041,1789.6,1789.5,45.6019]
[1746409802871,8.0041,1789.6,1789.5,46.71947]
[1746409804880,8.0041,1789.6,1789.5,41.91757]
[1746409805880,9.0318,1790.0,1789.5,44.0078]
[1746409806082,9.0318,1790.0,1789.9,1.11732]
[1746409806378,3.2078,1790.0,1789.9,1.11732]
[1746409806682,3.2078,1790.0,1789.8,14.18784]
[1746409806980,3.2078,1790.0,1789.5,9.25786]
[1746409807177,8.44325,1789.9,1789.6,14.06119]
[1746409807378,8.44324,1789.9,1789.7,48.64]
[1746409807879,7.3259,1789.9,1789.7,49.75744]
[1746409808075,8.44322,1789.9,1789.8,7.84]
[1746409808283,7.3259,1789.9,1789.8,7.84]
[1746409808480,8.44322,1789.9,1789.8,7.84]
[1746409808680,8.44322,1789.9,1789.8,48.64]
[1746409808876,7.3259,1789.9,1789.8,48.64]
[1746409809179,10.14909,1790.0,1789.8,48.64]
[1746409809380,10.14909,1790.0,1789.9,7.84]
[1746409809675,7.3259,1790.1,1789.9,8.95732]
[1746409809880,5.824,1790.2,1790.0,6.22091]
[1746409810077,5.824,1790.2,1790.1,7.3297]
[1746409810281,5.824,1790.2,1790.1,8.4469]
[1746409810479,5.824,1790.2,1790.1,7.3297]
[1746409811378,6.94113,1790.2,1790.1,7.3297]
[1746409811880,1.11732,1789.9,1789.8,40.8]
[1746409812081,1.11751,1789.6,1789.5,5.0986]
[1746409812281,1.11758,1789.5,1789.3,17.5161]
[1746409812481,1.11758,1789.5,1789.4,48.1297]
[1746409812482,4.32538,1789.5,1789.4,48.1297]
[1746409812678,4.32538,1789.5,1789.4,40.8]
[1746409813073,4.73688461,1789.5,1789.4,40.8]
[1746409813280,4.73688461,1789.5,1789.2,4.499]
[1746409813281,1.11769,1789.3,1789.2,4.499]
[1746409813482,1.11788,1789.0,1788.9,7.37261462]
[1746409813684,1.11787,1789.1,1788.9,14.68631462]
[1746409813882,1.11787,1789.1,1789.0,48.1137]
[1746409814078,3.2078,1789.3,1789.0,48.1137]
[1746409814280,1.11782,1789.1,1789.0,48.1137]
[1746409814480,4.32553,1789.3,1789.0,48.1137]
[1746409814685,4.32553,1789.3,1789.1,12.3906]
[1746409814884,3.2078,1789.3,1789.2,7.3137]
[1746409815381,4.32549,1789.3,1789.2,7.3137]
[1746409815583,3.2078,1789.3,1789.2,12.2847]
[1746409816186,6.94163,1789.4,1789.2,53.0847]
[1746409816390,1.11763,1789.4,1789.3,8.0848]
[1746409817183,16.042,1789.6,1789.3,48.8848]
[1746409817184,1.11757,1789.5,1789.3,48.8848]
[1746409817389,1.11757,1789.5,1789.4,8.0848]
[1746409817590,4.70796324,1789.5,1789.4,8.0848]
[1746409818893,1.11763,1789.4,1789.3,40.8]
[1746409821898,1.11763,1789.4,1789.3,48.1237]
[1746409825506,1.11761,1789.5,1789.3,48.1237]
[1746409825701,1.11761,1789.5,1789.4,8.0552]
[1746409826101,4.32541,1789.5,1789.4,8.0552]
[1746409826697,1.11807,1788.7,1788.6,7.37261462]
[1746409826900,4.32587,1788.7,1788.6,7.37261462]
[1746409827100,4.32587,1788.7,1788.6,2.11787023]
[1746409827302,9.32587,1788.7,1788.6,2.11787023]
[1746409827507,9.32587,1788.7,1788.6,1e-08]
[1746409828206,23.38187,1788.7,1788.6,1e-08]
[1746409828407,23.38187,1788.7,1788.5,8.30951194]
[1746409828408,1.11813,1788.6,1788.5,8.30951194]
[1746409828706,1.53155992,1788.6,1788.5,4.09005194]
[1746409828907,6.53159992,1788.6,1788.5,4.09005194]
[1746409829208,10.26360238,1788.6,1788.5,4.09005194]
[1746409829396,9.85013,1788.6,1788.5,2.69092194]
[1746409830210,15.67413,1788.6,1788.5,1.47772194]
[1746409830409,15.67413,1788.6,1788.5,1.94e-06]
[1746409831310,10.67413,1788.6,1788.5,1.94e-06]
[1746409831913,18.63383,1788.6,1788.5,1.94e-06]
[1746409832309,14.90183,1788.6,1788.5,1.94e-06]
[1746409833109,18.63383,1788.6,1788.5,1.94e-06]
[1746409833302,18.63383,1788.6,1788.4,14.74522924]
[1746409833303,1.11819,1788.5,1788.4,14.74522924]
[1746409833503,17.42649,1788.5,1788.4,14.74522924]
[1746409834006,17.42649,1788.5,1788.0,40.8]
[1746409834007,1.11827,1788.4,1788.0,51.3864]
[1746409834313,5.824,1788.4,1788.1,9.17362]
[1746409834510,13.1825,1788.4,1788.2,5.0787]
[1746409834810,12.7638,1788.5,1788.3,8.0552]
[1746409835210,9.0318,1788.5,1788.3,8.0552]
[1746409835511,9.0318,1788.5,1788.3,9.17351]
[1746409835906,10.15,1788.5,1788.3,8.0552]
[1746409836108,9.0318,1788.5,1788.3,9.17351]
[1746409836411,5.824,1788.5,1788.4,1.11826]
[1746409836710,9.41439324,1788.7,1788.4,1.11826]
[1746409836913,9.41439324,1788.7,1788.5,8.0552]
[1746409837414,9.41439324,1788.7,1788.6,4.8874]
[1746409837610,9.41439324,1788.7,1788.6,6.00553]
[1746409837806,3.59039324,1788.7,1788.6,11.00553]
[1746409838007,10.14977,1788.9,1788.6,4.8874]
[1746409838207,7.982,1788.8,1788.6,12.628]
[1746409838511,10.14977,1788.9,1788.7,7.7406]
[1746409838708,1.11801,1788.8,1788.7,7.7406]
[1746409839812,9.0318,1788.9,1788.7,8.85867]
[1746409840411,10.14975,1788.9,1788.7,7.7406]
[1746409840707,9.0318,1788.9,1788.7,8.85867]
[1746409840911,5.824,1789.3,1788.7,15.9484]
[1746409841116,1.11763,1789.4,1789.1,4.32561]
[1746409841316,1.11763,1789.4,1789.2,45.7181]
[1746409841612,1.11763,1789.4,1789.3,7.5258]
[1746409843315,1.11763,1789.4,1789.2,40.8]
[1746409843316,1.11769,1789.3,1789.2,40.8]
[1746409843511,4.32549,1789.3,1789.2,40.8]
[1746409844118,8.05749,1789.3,1789.2,40.8]
[1746409844620,6.9398,1789.3,1789.2,40.8]
[1746409845009,8.05749,1789.3,1789.2,40.8]
[1746409845210,4.32549,1789.3,1789.2,40.8]
[1746409845419,3.2078,1789.3,1789.2,40.8]
[1746409846114,10.14941,1789.5,1789.2,41.91776]
[1746409846418,1.11763,1789.4,1789.3,12.6669]
[1746409846612,9.0318,1789.5,1789.3,12.6669]
[1746409846809,10.14937,1789.5,1789.4,7.7764]
[1746409847405,9.0318,1789.5,1789.4,7.7764]
[1746409848021,10.14937,1789.5,1789.4,7.7764]
[1746409848320,9.0318,1789.5,1789.4,7.7764]
[1746409849120,10.14937,1789.5,1789.4,7.7764]
[1746409849822,9.0318,1789.5,1789.4,7.7764]
[1746409850218,9.0318,1789.5,1789.4,8.89403]
[1746409850415,9.0318,1789.5,1789.4,13.35903]
[1746409850820,5.824,1789.5,1789.4,13.35903]
[1746409851423,9.11073,1789.8,1789.5,1.11752]
[1746409851621,1.11743,1789.8,1789.6,9.25949]
[1746409851921,1.11737,1789.9,1789.7,4.7744]
[1746409852121,1.11737,1789.9,1789.8,8.142]
[1746409852423,9.0318,1790.0,1789.8,9.25936]
[1746409852621,10.14906,1790.0,1789.8,12.607]
[1746409852920,10.14906,1790.0,1789.9,7.5529]
[1746409853113,4.32506,1790.0,1789.9,7.5529]
[1746409853317,3.2078,1790.0,1789.9,7.5529]
[1746409853515,3.2078,1790.0,1789.9,8.67022]
[1746409853716,3.59039324,1790.1,1790.0,1.11726]
[1746409853916,3.2078,1790.2,1790.0,1.11726]
[1746409854124,3.2078,1790.2,1790.1,12.7267]
[1746409854323,4.32493,1790.2,1790.1,12.7267]
[1746409854523,3.2078,1790.2,1790.1,12.7267]
[1746409854729,3.59039324,1790.3,1790.1,13.84387]
[1746409854924,4.70746324,1790.3,1790.2,7.5529]
[1746409855124,3.59039324,1790.3,1790.2,7.5529]
[1746409855324,4.70746324,1790.3,1790.2,7.5529]
[1746409855627,3.59039324,1790.3,1790.2,7.5529]
[1746409856526,3.59039324,1790.3,1790.2,8.67003]
[1746409856727,3.59039324,1790.3,1790.2,18.30353]
[1746409857031,10.14881,1790.4,1790.2,57.9864]
[1746409857223,4.32481,1790.4,1790.3,7.4408]
[1746409857427,4.32481,1790.4,1790.2,45.264]
[1746409857622,7.6577,1790.3,1790.2,45.264]
[1746409857821,7.6577,1790.3,1790.2,52.7048]
[1746409858531,3.2078,1790.4,1790.3,1.11707]
[1746409858726,3.2078,1790.4,1790.3,9.21657]
[1746409858927,3.2078,1790.4,1790.3,8.0995]
[1746409860724,3.2078,1790.4,1790.3,12.9182]
[1746409861423,3.2078,1790.4,1790.3,14.03527]
[1746409861623,9.0318,1790.6,1790.4,1.11696]
[1746409861826,16.9072,1790.8,1790.5,5.1831]
[1746409862028,5.824,1790.9,1790.7,1.1168]
[1746409862222,5.824,1790.9,1790.8,8.0482]
[1746409863135,7.8754,1791.1,1790.8,9.16492]
[1746409863334,8.99199,1791.1,1790.9,5.1831]
[1746409863535,1.11663,1791.0,1790.9,5.1831]
[1746409863830,8.992,1791.1,1790.9,5.1831]
[1746409864023,17.42959324,1791.2,1790.9,6.29978]
[1746409864226,26.42151324,1791.2,1791.0,8.0482]
[1746409864432,25.30499324,1791.2,1791.0,8.0482]
[1746409864735,8.0623,1791.1,1791.0,12.5102]
[1746409865031,9.17887,1791.1,1791.0,4.462]
[1746409867036,8.0623,1791.1,1791.0,4.462]
[1746409867228,13.8392,1791.2,1791.0,5.57861]
[1746409867427,21.9239,1791.2,1791.1,8.1148]
[1746409867728,8.0847,1791.2,1791.1,8.1148]
[1746409868038,3.2078,1791.4,1791.1,14.46697]
[1746409868333,4.32419,1791.4,1791.1,14.46697]
[1746409868534,4.32419,1791.4,1791.2,48.9148]
[1746409869227,1.11645,1791.3,1791.2,48.9148]
[1746409869427,8.0847,1791.3,1791.2,48.9148]
[1746409869731,3.2078,1791.4,1791.2,50.0313]
[1746409870133,3.2078,1791.4,1791.3,8.1148]
[1746409870732,9.0318,1791.6,1791.3,8.1148]
[1746409871033,5.824,1791.6,1791.4,4.428]
[1746409871235,5.824,1791.6,1791.5,8.90822]
[1746409871424,5.824,1791.6,1791.5,49.70822]
[1746409871628,5.824,1791.6,1791.5,54.82592]
[1746409871831,5.824,1791.6,1791.5,53.7096]
[1746409872033,6.94026,1791.6,1791.5,53.7096]
[1746409872336,6.94026,1791.6,1791.5,40.8]
[1746409872637,14.65056,1791.6,1791.5,40.8]
[1746409873041,19.65056,1791.6,1791.5,40.8]
[1746409873336,23.38256,1791.6,1791.5,40.8]
[1746409873738,18.38256,1791.6,1791.5,40.8]
[1746409875947,18.38256,1791.6,1791.2,8.90841]
[1746409876135,7.8892,1791.5,1791.3,1.11644]
[1746409876337,5.824,1791.6,1791.4,7.7848]
[1746409876537,5.824,1791.6,1791.5,9.2386]
[1746409876750,5.824,1791.6,1791.5,10.35492]
[1746409877042,5.824,1791.6,1791.5,50.0386]
[1746409877246,5.824,1791.6,1791.5,51.15492]
[1746409877642,5.824,1791.6,1791.5,50.0386]
[1746409877837,7.8892,1791.8,1791.5,50.0386]
[1746409878037,9.00534,1791.8,1791.6,7.6689]
[1746409878438,1.11614,1791.8,1791.6,7.6689]
[1746409878640,13.6053,1791.9,1791.6,8.78511]
[1746409878945,14.72138,1791.9,1791.6,8.78511]
[1746409879147,3.2078,1791.9,1791.7,1.11618]
[1746409879345,1.11616,1791.8,1791.5,56.15538]
[1746409879643,8.79386,1791.8,1791.6,7.6689]
[1746409880346,7.6777,1791.8,1791.6,8.78515]
[1746409880546,4.32391,1791.9,1791.6,8.78515]
[1746409880940,11.99301,1791.9,1791.6,8.78515]
[1746409881141,1.11614,1791.8,1791.6,8.78515]
[1746409881647,1.11614,1791.8,1791.6,7.6689]
[1746409881842,1.11614,1791.8,1791.6,8.78516]
[1746409882044,1.11614,1791.8,1791.6,7.6689]
[1746409882249,1.11614,1791.8,1791.6,8.78515]
[1746409883347,1.11614,1791.8,1791.6,7.6689]
[1746409883549,7.6691,1791.9,1791.7,1.11618]
[1746409883745,5.824,1792.0,1791.8,7.3536]
[1746409884247,5.824,1792.0,1791.9,9.4799]
[1746409884447,17.8685,1792.1,1791.9,9.4799]
[1746409884648,7.7207,1792.0,1791.9,9.4799]
[1746409885044,11.24583,1792.2,1791.9,10.59595]
[1746409885353,17.8506,1792.2,1792.0,7.3536]
[1746409885546,3.2078,1792.1,1791.9,9.4799]
[1746409885753,10.9285,1792.1,1791.9,4.426]
[1746409885952,12.0445,1792.1,1791.9,4.426]
[1746409886151,7.7098,1792.0,1791.9,12.2994]
[1746409886353,8.82581,1792.0,1791.9,4.426]
[1746409886851,7.7098,1792.0,1791.9,4.426]
[1746409887357,11.24582,1792.2,1791.9,5.54203]
[1746409887551,18.95562,1792.2,1792.0,7.8734]
[1746409887752,18.95562,1792.2,1792.0,12.9403]
[1746409889251,1.11595,1792.1,1792.0,12.9403]
[1746409889555,11.98045,1792.1,1792.0,12.9403]
[1746409890453,11.98048,1792.1,1791.9,4.426]
[1746409890657,8.77268,1792.1,1792.0,7.4336]
[1746409890957,11.98048,1792.1,1792.0,7.4336]
[1746409891752,21.6885,1792.1,1791.5,50.12459]
[1746409891953,3.2078,1791.9,1791.6,13.50955]
[1746409892256,3.2078,1791.9,1791.7,7.9683]
[1746409893157,3.2078,1791.9,1791.7,9.08449]
[1746409893356,8.82894,1792.0,1791.7,9.08449]
[1746409893558,8.82894,1792.0,1791.8,1.11612]
[1746409893758,7.7129,1792.0,1791.9,7.9683]
[1746409893959,6.93999,1792.1,1791.9,14.25996]
[1746409894162,6.93999,1792.1,1791.9,13.1439]
[1746409894360,6.93999,1792.1,1792.0,7.9683]
[1746409894658,5.824,1792.1,1792.0,12.3933]
[1746409894847,13.5369,1792.1,1792.0,12.3933]
[1746409895051,12.6852,1792.4,1792.0,12.3933]
[1746409895253,9.07557,1792.4,1792.1,13.27521]
[1746409895461,9.07557,1792.4,1792.2,7.3227]
[1746409895858,16.61957,1792.4,1792.2,7.3227]
[1746409896161,16.61957,1792.4,1792.2,8.43858]
[1746409897159,1.11582,1792.3,1792.2,7.3227]
[1746409897355,1.11582,1792.3,1792.1,4.8366]
[1746409897555,8.65982,1792.3,1792.1,13.27524]
[1746409897757,7.544,1792.3,1792.1,13.27524]
[1746409897957,8.65982,1792.3,1792.2,8.0358]
[1746409898153,13.179,1792.4,1792.2,9.15169]
[1746409898455,3.2078,1792.4,1792.3,4.9536]
[1746409898655,5.824,1792.7,1792.4,1.11572]
[1746409898656,3.2078,1792.6,1792.4,1.11572]
[1746409898955,8.50731,1792.7,1792.5,8.0358]
[1746409899156,8.50731,1792.7,1792.6,40.8]
[1746409899352,13.1162,1792.8,1792.6,41.91561]
[1746409899564,13.1162,1792.8,1792.7,8.0358]
[1746409900153,10.52968324,1793.2,1792.9,1.11545]
[1746409900358,1.11533,1793.1,1793.0,40.8]
[1746409900562,8.50703,1793.1,1793.0,40.8]
[1746409901066,12.23903,1793.1,1793.0,40.8]
[1746409901267,11.1237,1793.1,1793.0,40.8]
[1746409901766,3.732,1793.1,1793.0,48.5634]
[1746409902167,14.13909324,1793.2,1793.0,48.5634]
[1746409902462,14.13909324,1793.2,1793.1,7.7634]
[1746409903170,14.13909324,1793.2,1793.1,48.5634]
[1746409903471,11.66396,1793.2,1793.1,40.8]
[1746409904170,15.39596,1793.2,1793.1,40.8]
[1746409907165,11.66396,1793.2,1793.1,40.8]
[1746409908173,15.39596,1793.2,1793.1,40.8]
[1746409911483,1.11539,1793.0,1792.9,4.392]
[1746409911683,1.11539,1793.0,1792.9,12.4134]
[1746409912282,4.32319,1793.0,1792.9,12.4134]
[1746409912483,3.2078,1793.0,1792.9,40.8]
[1746409912689,4.32319,1793.0,1792.9,40.8]
[1746409913182,8.05519,1793.0,1792.9,40.8]
[1746409916070,13.87919,1793.0,1792.9,40.8]
[1746409916478,18.87919,1793.0,1792.9,40.8]
[1746409916680,8.05519,1793.0,1792.9,40.8]
[1746409917178,1.11545,1792.9,1792.8,18.3707]
[1746409917678,8.93785,1792.9,1792.8,18.3707]
[1746409917874,7.8224,1792.9,1792.8,18.3707]
[1746409918088,4.32323,1793.0,1792.8,59.1707]
[1746409918286,4.32323,1793.0,1792.9,8.0619]
[1746409919185,3.2078,1793.0,1792.9,8.0619]
[1746409919787,3.2078,1793.0,1792.9,48.8619]
[1746409920986,1.11537,1793.1,1792.9,48.8619]
[1746409921187,1.11537,1793.1,1793.0,7.9747]
[1746409923286,1.11537,1793.1,1793.0,7.96516484]
[1746409927688,9.08027,1793.1,1793.0,7.96516484]
[1746409935491,9.08027,1793.1,1793.0,48.76516484]
[1746409935898,3.2078,1793.2,1793.0,48.76516484]
[1746409936195,3.2078,1793.2,1793.1,12.2618]
[1746409936793,1.11522,1793.3,1793.1,12.2618]
[1746409936995,1.11522,1793.3,1793.2,5.0798]
[1746409938790,8.88362,1793.3,1793.2,5.0798]
[1746409943800,12.09142,1793.3,1793.2,5.0798]
[1746409944499,8.88362,1793.3,1793.2,5.0798]
[1746409946502,1.11526,1793.2,1793.1,4.357]
[1746409946910,8.34636,1793.2,1793.1,4.357]
[1746409948007,1.11526,1793.2,1793.1,4.357]
[1746409948500,3.59039324,1793.4,1793.2,1.11526]
[1746409948808,3.59039324,1793.4,1793.3,5.1867]
[1746409949709,5.38558986,1793.4,1793.3,5.1867]
[1746409950009,5.38558986,1793.4,1793.3,6.3019]
[1746409950819,5.38558986,1793.4,1793.3,5.1867]
[1746409951013,6.50072986,1793.4,1793.3,5.1867]
[1746409952113,6.50072986,1793.4,1793.3,12.9968]
[1746409953309,5.38558986,1793.4,1793.3,14.112]
[1746409953510,5.38558986,1793.4,1793.3,22.3198]
[1746409954217,5.38558986,1793.4,1793.3,17.3198]
[1746409954715,6.50072986,1793.4,1793.3,16.2046]
[1746409954911,6.50072986,1793.4,1793.3,12.9968]
[1746409955118,6.50072986,1793.4,1793.3,12.1661]
[1746409955313,8.65144,1793.4,1793.3,4.356]
[1746409955614,18.74634,1793.4,1793.3,4.356]
[1746409956117,22.47834,1793.4,1793.3,4.356]
[1746409957119,18.74634,1793.4,1793.3,4.356]
[1746409957615,1.1152,1793.3,1793.2,16.7386]
[1746409957814,11.21006,1793.4,1793.2,16.7386]
[1746409958012,10.0949,1793.4,1793.3,7.2836]
[1746409959017,7.6411,1793.5,1793.3,7.2836]
[1746409959315,8.75618,1793.5,1793.3,7.2836]
[1746409959613,1.11514,1793.4,1793.3,7.2836]
[1746409959819,10.8489,1793.5,1793.2,9.1215]
[1746409960021,1.11516,1793.4,1793.2,9.1215]
[1746409960322,7.8123,1793.3,1793.2,16.6509]
[1746409960518,7.8123,1793.3,1793.2,17.76616]
[1746409960815,7.8123,1793.3,1793.2,16.6509]
[1746409961022,7.8123,1793.3,1793.2,17.76616]
[1746409961219,7.8123,1793.3,1793.2,16.6509]
[1746409963624,8.9275,1793.3,1793.2,16.6509]
[1746409965024,8.9275,1793.3,1793.2,11.8854]
[1746409966223,8.9275,1793.3,1793.2,4.356]
[1746409967414,5.99554,1793.5,1793.2,11.8254]
[1746409967415,4.32293,1793.5,1793.2,11.8254]
[1746409967620,1.11515,1793.4,1793.2,12.94064]
[1746409967820,1.11515,1793.4,1793.3,12.4913]
[1746409968021,8.82281,1793.5,1793.3,12.4913]
[1746409968318,8.82281,1793.5,1793.4,7.6733]
[1746409968924,7.85901307,1793.5,1793.2,4.356]
[1746409969117,1.11514,1793.4,1793.2,12.0293]
[1746409969319,1.11514,1793.4,1793.3,7.6733]
[1746409969923,1.26645307,1793.4,1793.3,7.6733]
[1746409974327,0.15131307,1793.4,1793.3,7.6733]
[1746409974627,1.26645307,1793.4,1793.3,7.6733]
[1746409974830,0.15131307,1793.4,1793.3,7.6733]
[1746409975927,0.15131307,1793.4,1793.3,13.7885]
[1746409976120,1.26645307,1793.4,1793.3,7.6733]
[1746409976321,0.15131307,1793.4,1793.3,7.6733]
[1746409976624,1.26645307,1793.4,1793.3,7.6733]
[1746409977430,1.34213766,1793.4,1793.3,7.6733]
[1746409978429,0.22699766,1793.4,1793.3,7.6733]
[1746409978629,1.34213766,1793.4,1793.3,7.6733]
[1746409979031,0.22699766,1793.4,1793.3,7.6733]
[1746409979728,1.34213766,1793.4,1793.3,7.6733]
[1746409981630,0.22699766,1793.4,1793.3,8.7885]
[1746409982432,0.22699766,1793.4,1793.3,11.9963]
[1746409983432,0.22699766,1793.4,1793.3,8.7885]
[1746409985034,1.34213766,1793.4,1793.2,5.47124]
[1746409985235,0.22699766,1793.4,1793.3,9.1269]
[1746409985734,0.22699766,1793.4,1793.3,12.3347]
[1746409986035,5.2156,1793.7,1793.3,8.0117]
[1746409986337,8.89715,1793.6,1793.4,8.57602]
[1746409986638,7.7821,1793.6,1793.5,1.11508]
[1746409986837,6.33059,1793.7,1793.5,11.28546]
[1746409987137,6.33059,1793.7,1793.6,7.4609]
[1746409987433,6.33059,1793.7,1793.6,11.7859]
[1746409987635,14.11269,1793.7,1793.6,11.7859]
[1746409989135,12.9977,1793.7,1793.6,11.7859]
[1746409989635,14.11265,1793.7,1793.6,11.7859]
[1746409990031,12.9977,1793.7,1793.6,11.7859]
[1746409990432,14.11265,1793.7,1793.6,11.7859]
[1746409990941,12.9977,1793.7,1793.6,11.7859]
[1746409991242,12.9977,1793.7,1793.6,12.90092]
[1746409991441,12.9977,1793.7,1793.6,11.7859]
[1746409992040,3.64247763,1793.8,1793.7,1.11495]
[1746409992341,3.64247763,1793.8,1793.7,8.83885]
[1746409993143,3.64247763,1793.8,1793.7,49.63885]
[1746409993342,3.64247763,1793.8,1793.7,48.5239]
[1746409994150,0.07568459,1793.8,1793.7,48.5239]
[1746409994750,8.02948459,1793.8,1793.7,48.5239]
[1746409995150,9.14437459,1793.8,1793.7,48.5239]
[1746409996047,0.07568459,1793.8,1793.7,48.5239]
[1746409996245,0.07568459,1793.8,1793.7,49.63885]
[1746409999747,0.07568459,1793.8,1793.7,48.5239]
[1746409999960,1.19057459,1793.8,1793.7,40.8]
[1746410000552,0.07568459,1793.8,1793.7,40.8]
[1746410000850,1.19057459,1793.8,1793.7,40.8]
[1746410001448,1.19057459,1793.8,1793.7,48.4613]
[1746410001651,0.07568459,1793.8,1793.7,48.4613]
[1746410001853,1.19057459,1793.8,1793.7,48.4613]
[1746410002049,0.07568459,1793.8,1793.7,48.4613]
[1746410002950,1.19057459,1793.8,1793.7,48.4613]
[1746410003153,1.26625918,1793.8,1793.7,40.8]
[1746410007460,6.22665918,1793.8,1793.7,40.8]
[1746410009267,9.43445918,1793.8,1793.7,40.8]
[1746410010172,13.16645918,1793.8,1793.7,40.8]
[1746410011671,13.24214377,1793.8,1793.7,40.8]
[1746410012668,20.68284377,1793.8,1793.7,40.8]
[1746410012873,26.50684377,1793.8,1793.7,40.8]
[1746410015674,32.60348021,1793.8,1793.7,40.8]
[1746410017573,1.11508,1793.5,1793.4,4.292]
[1746410017773,4.54993377,1793.5,1793.4,4.292]
[1746410018370,1.34213377,1793.5,1793.4,4.292]
[1746410018573,6.46923377,1793.5,1793.4,45.092]
[1746410018773,9.67703377,1793.5,1793.4,45.092]
[1746410019372,9.67703377,1793.5,1793.4,40.8]
[1746410019875,17.53173377,1793.5,1793.4,40.8]
[1746410020072,21.26373377,1793.5,1793.4,40.8]
[1746410020569,21.33941836,1793.5,1793.4,40.8]
[1746410021178,17.60741836,1793.5,1793.4,40.8]
[1746410021675,21.25606282,1793.5,1793.4,40.8]
[1746410022178,24.98806282,1793.5,1793.4,40.8]
[1746410023471,24.98806282,1793.5,1793.4,48.1546]
[1746410023881,21.78026282,1793.5,1793.4,48.1546]
[1746410024176,18.04826282,1793.5,1793.4,48.1546]
[1746410025279,14.39961836,1793.5,1793.4,48.1546]
[1746410025978,17.60741836,1793.5,1793.4,40.8]
[1746410026177,21.33941836,1793.5,1793.4,40.8]
[1746410028972,1.1152,1793.3,1793.2,4.261]
[1746410029282,2.78817,1793.2,1792.7,3.2078]
[1746410029486,1.11551,1792.8,1792.7,20.6091]
[1746410029981,1.11551,1792.8,1792.7,61.4091]
[1746410030375,1.49393295,1792.8,1792.7,61.4091]
[1746410030984,1.49393295,1792.8,1792.7,58.2013]
[1746410031282,10.06053295,1792.8,1792.7,58.2013]
[1746410033178,6.32853295,1792.8,1792.7,58.2013]
[1746410033378,1.49393295,1792.8,1792.7,58.2013]
[1746410033586,14.23493295,1792.8,1792.7,58.2013]
[1746410033887,17.44273295,1792.8,1792.7,58.2013]
[1746410034086,17.44273295,1792.8,1792.7,40.8]
[1746410034288,21.17473295,1792.8,1792.7,40.8]
[1746410036087,4.70173295,1792.8,1792.7,48.8295]
[1746410036288,4.70173295,1792.8,1792.7,53.6439]
[1746410036586,12.25703295,1792.8,1792.7,53.6439]
[1746410036883,12.25703295,1792.8,1792.7,48.8295]
[1746410037389,12.25703295,1792.8,1792.7,40.8]
[1746410037780,12.33271754,1792.8,1792.7,40.8]
[1746410038079,16.06471754,1792.8,1792.7,40.8]
[1746410038692,2.78894,1792.7,1792.2,4.263]
[1746410038891,1.11576,1792.4,1792.3,4.7584]
[1746410039686,1.56986754,1792.4,1792.3,45.5584]
[1746410040992,0.45410754,1792.4,1792.3,50.5584]
[1746410041195,0.45410754,1792.4,1792.3,51.67422]
[1746410041592,0.45410754,1792.4,1792.3,50.5584]
[1746410042495,0.45410754,1792.4,1792.3,51.67422]
[1746410042799,6.93948,1792.9,1792.6,1.11563]
[1746410042991,1.11548,1792.9,1792.8,3.2078]
[1746410043195,1.11548,1792.9,1792.7,4.8857]
[1746410044092,4.76405446,1793.0,1792.7,6.00126]
[1746410044389,4.76408446,1793.0,1792.7,4.8857]
[1746410044590,3.64864446,1793.0,1792.9,3.2078]
[1746410044789,3.64864446,1793.0,1792.9,4.32325]
[1746410044989,3.64864446,1793.0,1792.9,9.32325]
[1746410045191,3.64864446,1793.0,1792.9,50.12325]
[1746410046001,1.11533,1793.1,1792.9,50.12325]
[1746410046194,1.11533,1793.1,1793.0,4.18731541]
[1746410047798,1.11531,1793.2,1793.0,4.18731541]
[1746410048099,1.11531,1793.2,1793.1,4.8727]
[1746410048397,16.7871,1793.4,1793.1,4.8727]